bitfinex-derivatives/quotes_BTCF0:USTF0_20241218
["timestamp","ask_amount","ask_price","bid_price","bid_amount"]
[1734523294873,0.14270092,105020.0,105010.0,0.56196809]
[1734523295171,0.14270092,105020.0,105010.0,2.06196809]
[1734523295470,0.14278474,105020.0,105010.0,2.06196809]
[1734523295975,8.382e-05,105020.0,105010.0,2.06196809]
[1734523298186,8.382e-05,105020.0,105010.0,1.97479042]
[1734523298764,8.382e-05,105020.0,105010.0,2.06196809]
[1734523299681,8.382e-05,105020.0,105010.0,2.0619523]
[1734523300172,8.382e-05,105020.0,105010.0,0.5619523]
[1734523301074,8.382e-05,105020.0,105010.0,2.0619523]
[1734523301576,8.382e-05,105020.0,105010.0,2.07379701]
[1734523302778,8.382e-05,105020.0,105010.0,2.07378477]
[1734523302981,8.382e-05,105020.0,105010.0,2.01068477]
[1734523303182,8.382e-05,105020.0,105010.0,1.9235071]
[1734523303373,8.382e-05,105020.0,105010.0,2.01068477]
[1734523303971,8.382e-05,105020.0,105010.0,1.9235071]
[1734523303972,0.04770082,105020.0,105010.0,1.9235071]
[1734523305871,0.14270092,105030.0,105020.0,0.00361618]
[1734523306176,0.17125164,105040.0,105030.0,0.047612]
[1734523306381,0.17125164,105040.0,105030.0,0.41161339]
[1734523306573,0.17125164,105040.0,105030.0,1.91165339]
[1734523306976,0.00010354,105040.0,105030.0,1.91165339]
[1734523308185,0.00010354,105040.0,105030.0,0.41165339]
[1734523308687,0.04771154,105040.0,105030.0,0.41165339]
[1734523309192,0.04771154,105040.0,105030.0,0.41164815]
[1734523309879,0.16748921,105040.0,105030.0,0.41164815]
[1734523310078,0.16748921,105040.0,105030.0,0.05084815]
[1734523310481,0.08031154,105040.0,105030.0,0.05084815]
[1734523311080,0.11111154,105040.0,105030.0,0.05084815]
[1734523311283,0.19828921,105040.0,105030.0,0.05084815]
[1734523311887,0.19828921,105040.0,105030.0,0.00323615]
[1734523312987,0.36954085,105040.0,105030.0,0.00323615]
[1734523313290,0.047612,105030.0,105020.0,0.047613]
[1734523313489,0.079912,105030.0,105020.0,0.047613]
[1734523313990,0.079912,105030.0,105020.0,0.408413]
[1734523314292,0.079992,105030.0,105020.0,0.408413]
[1734523317794,0.16716967,105030.0,105020.0,0.408413]
[1734523318195,0.079992,105030.0,105020.0,0.408413]
[1734523319093,0.16716967,105030.0,105020.0,0.408413]
[1734523319485,0.16716967,105030.0,105020.0,0.047613]
[1734523319885,0.079992,105030.0,105020.0,0.408413]
[1734523320490,0.03238,105030.0,105020.0,0.408413]
[1734523320679,8e-05,105030.0,105020.0,0.439813]
[1734523320881,8e-05,105030.0,105020.0,0.52699067]
[1734523322701,8e-05,105030.0,105020.0,0.53681435]
[1734523322996,0.11404185,105040.0,105030.0,0.047612]
[1734523323181,0.11396185,105040.0,105030.0,0.408412]
[1734523323387,0.11396185,105040.0,105030.0,0.408452]
[1734523323893,0.11396185,105040.0,105030.0,0.49562967]
[1734523324094,0.10317506,105050.0,105030.0,0.88280734]
[1734523324289,0.07127541,105050.0,105040.0,0.54347767]
[1734523324488,0.07127541,105050.0,105040.0,0.59108567]
[1734523324690,0.07127541,105050.0,105040.0,0.503908]
[1734523325089,0.07127541,105050.0,105040.0,0.50715497]
[1734523325090,7.767e-05,105050.0,105040.0,0.50715497]
[1734523325893,7.767e-05,105050.0,105040.0,2.00715497]
[1734523326089,7.767e-05,105050.0,105040.0,2.23335885]
[1734523327097,7.767e-05,105050.0,105040.0,0.50715497]
[1734523327699,7.767e-05,105050.0,105040.0,0.50714803]
[1734523330200,7.767e-05,105050.0,105040.0,0.59112567]
[1734523331199,7.767e-05,105050.0,105040.0,0.59432333]
[1734523334212,7.767e-05,105050.0,105040.0,0.59112567]
[1734523336313,7.767e-05,105050.0,105040.0,2.09112567]
[1734523337109,7.767e-05,105050.0,105040.0,2.31732955]
[1734523338113,7.767e-05,105050.0,105040.0,2.24904625]
[1734523338905,7.767e-05,105050.0,105040.0,2.33622392]
[1734523339213,0.31785555,105080.0,105070.0,0.047594]
[1734523339506,0.31785555,105080.0,105070.0,0.047634]
[1734523340103,0.31795023,105080.0,105070.0,0.047634]
[1734523340416,0.27035623,105080.0,105070.0,0.047634]
[1734523341311,0.63115623,105080.0,105070.0,0.047634]
[1734523341613,0.27035623,105080.0,105070.0,0.047634]
[1734523342205,0.30285623,105080.0,105070.0,0.047634]
[1734523342405,0.30285623,105080.0,105070.0,0.408434]
[1734523342708,0.17628422,105080.0,105070.0,0.49561167]
[1734523343615,0.17628422,105080.0,105070.0,0.408434]
[1734523344011,0.14235605,105080.0,105070.0,0.49561167]
[1734523344414,9.468e-05,105080.0,105070.0,0.5064099]
[1734523346308,9.468e-05,105080.0,105070.0,2.0064099]
[1734523346517,0.00053,105090.0,105080.0,0.047589]
[1734523346716,0.00053,105090.0,105080.0,0.55906667]
[1734523346911,0.00053,105090.0,105080.0,0.55910667]
[1734523347219,0.00053,105090.0,105080.0,0.64628434]
[1734523347410,0.1325,105100.0,105090.0,0.047585]
[1734523347610,0.1000876,105100.0,105090.0,0.58274034]
[1734523347813,0.1000876,105100.0,105090.0,0.49560267]
[1734523348011,0.077773,105120.0,105110.0,0.13475367]
[1734523348214,0.077773,105120.0,105110.0,0.49555367]
[1734523348415,0.077773,105120.0,105110.0,0.49559367]
[1734523348714,0.077773,105120.0,105110.0,0.13479367]
[1734523348915,0.07788501,105120.0,105110.0,4e-05]
[1734523349318,0.43868501,105120.0,105110.0,4e-05]
[1734523350120,0.58076187,105120.0,105110.0,4e-05]
[1734523351822,0.58076187,105120.0,105110.0,1.50004]
[1734523352215,0.96793954,105120.0,105110.0,1.50004]
[1734523352478,0.047589,105080.0,105070.0,6.696e-05]
[1734523352659,0.408389,105080.0,105070.0,6.696e-05]
[1734523352884,0.47134787,105080.0,105070.0,6.696e-05]
[1734523353015,0.50404787,105080.0,105070.0,0.08724463]
[1734523353213,0.04774787,105080.0,105070.0,0.49563863]
[1734523353414,0.04774787,105080.0,105070.0,1.99563863]
[1734523353616,0.00015887,105080.0,105070.0,1.99563863]
[1734523354429,0.00015887,105080.0,105070.0,2.05853863]
[1734523355628,0.0306,105100.0,105070.0,2.05853863]
[1734523355832,0.14207686,105110.0,105100.0,0.04758]
[1734523356028,0.18965286,105110.0,105100.0,0.40838]
[1734523356333,0.14207686,105110.0,105100.0,0.40838]
[1734523356830,0.18973123,105110.0,105100.0,0.40838]
[1734523357630,0.04765437,105110.0,105100.0,0.40838]
[1734523358939,0.04765437,105110.0,105100.0,1.90838]
[1734523359937,0.04765437,105110.0,105100.0,1.91932644]
[1734523368537,0.18973123,105110.0,105100.0,1.91932644]
[1734523371047,0.55053123,105110.0,105100.0,1.55852644]
[1734523372150,0.5789466,105110.0,105100.0,1.55852644]
[1734523373039,0.5789466,105110.0,105100.0,1.51094644]
[1734523374345,0.40845437,105110.0,105100.0,1.51094644]
[1734523374546,0.40845437,105110.0,105100.0,0.05852644]
[1734523375747,0.40845437,105110.0,105100.0,1.55852644]
[1734523376145,0.57936285,105110.0,105100.0,1.55852644]
[1734523377846,0.57936285,105110.0,105100.0,1.51094644]
[1734523378744,0.21856285,105110.0,105100.0,1.51094644]
[1734523378948,0.57936285,105110.0,105100.0,1.51094644]
[1734523380644,0.66654052,105110.0,105100.0,1.51094644]
[1734523380851,0.69814052,105110.0,105100.0,1.51094644]
[1734523381551,0.21856285,105110.0,105100.0,1.51094644]
[1734523381751,0.57936285,105110.0,105100.0,1.51094644]
[1734523383948,0.57936285,105110.0,105100.0,1.55852644]
[1734523384639,0.21856285,105110.0,105100.0,1.91932644]
[1734523384953,0.21856285,105110.0,105100.0,1.98422644]
[1734523386851,0.36112215,105110.0,105100.0,1.98422644]
[1734523387150,0.31354615,105110.0,105100.0,1.98422644]
[1734523387449,0.31354615,105110.0,105100.0,2.07140411]
[1734523387951,0.14263767,105110.0,105100.0,2.07140411]
[1734523388448,0.14263767,105110.0,105100.0,2.0808591]
[1734523389350,0.19962375,105110.0,105100.0,2.58795837]
[1734523389751,0.19962375,105110.0,105100.0,2.57850338]
[1734523390458,0.08559782,105110.0,105100.0,2.57850338]
[1734523392650,0.08559782,105110.0,105100.0,2.2964941]
[1734523393155,0.03569782,105110.0,105100.0,2.2964941]
[1734523393658,0.12402593,105120.0,105110.0,0.047576]
[1734523393846,0.12402593,105120.0,105110.0,0.52875367]
[1734523394051,0.12413314,105120.0,105110.0,0.52879367]
[1734523394252,0.12413314,105120.0,105110.0,2.02879367]
[1734523394958,0.12413314,105120.0,105110.0,2.25388366]
[1734523394959,0.01010721,105120.0,105110.0,2.25388366]
[1734523402368,0.01010721,105120.0,105110.0,2.02879367]
[1734523405761,0.05767821,105120.0,105110.0,1.92703203]
[1734523405958,0.05767821,105120.0,105110.0,2.0142097]
[1734523406463,0.09057821,105120.0,105110.0,2.0142097]
[1734523413273,0.20460414,105120.0,105110.0,2.0142097]
[1734523413773,0.12413314,105120.0,105110.0,2.0142097]
[1734523416667,0.12413314,105120.0,105110.0,2.23929969]
[1734523416866,0.15563314,105120.0,105110.0,2.23929969]
[1734523418466,0.15563314,105120.0,105110.0,2.15212202]
[1734523418663,0.20320414,105120.0,105110.0,2.15212202]
[1734523420072,0.08917821,105120.0,105110.0,2.15212202]
[1734523420575,0.83715588,105120.0,105110.0,1.72512999]
[1734523420964,0.53715588,105120.0,105110.0,1.72512999]
[1734523421166,0.83715588,105120.0,105110.0,1.72512999]
[1734523421364,0.97971518,105120.0,105110.0,1.72512999]
[1734523422875,0.83715588,105120.0,105110.0,1.50004]
[1734523423571,0.047585,105090.0,105080.0,0.55468727]
[1734523423771,0.40848219,105090.0,105080.0,0.56422507]
[1734523424080,0.50548219,105090.0,105080.0,2.06422507]
[1734523424373,0.50548219,105090.0,105080.0,1.77267799]
[1734523424768,0.14468219,105090.0,105080.0,1.78318115]
[1734523425180,0.50548219,105090.0,105080.0,1.73559315]
[1734523425372,0.61933778,105090.0,105080.0,1.51050316]
[1734523426580,0.76165727,105090.0,105080.0,1.51050316]
[1734523426883,0.84883494,105090.0,105080.0,1.51050316]
[1734523427179,0.84883494,105090.0,105080.0,1.5]
[1734523427673,0.70651545,105090.0,105080.0,1.5]
[1734523428574,1.02079546,105090.0,105080.0,1.5]
[1734523428776,0.27281779,105090.0,105080.0,1.5]
[1734523428979,0.22523778,105090.0,105080.0,0.49556667]
[1734523429492,7.8e-07,105090.0,105080.0,2.38274434]
[1734523429777,0.31310288,105100.0,105090.0,0.047585]
[1734523429977,0.31310288,105100.0,105090.0,0.58274034]
[1734523430280,0.14231949,105110.0,105100.0,0.04758]
[1734523430481,0.14241685,105110.0,105100.0,0.52625767]
[1734523430670,0.14241685,105110.0,105100.0,0.52629767]
[1734523430871,9.736e-05,105110.0,105100.0,0.52629767]
[1734523431981,0.31310288,105140.0,105130.0,0.047567]
[1734523432283,0.14231949,105140.0,105130.0,0.49558467]
[1734523432676,0.14231949,105140.0,105130.0,1.99558467]
[1734523432876,0.14240798,105140.0,105130.0,1.99558467]
[1734523433778,8.849e-05,105140.0,105130.0,1.99558467]
[1734523435378,8.849e-05,105140.0,105130.0,1.63478467]
[1734523435579,0.04765049,105140.0,105130.0,1.547607]
[1734523436881,0.04765049,105140.0,105130.0,1.99558467]
[1734523437394,0.04765049,105140.0,105130.0,2.00570402]
[1734523439696,8.849e-05,105140.0,105130.0,2.00570402]
[1734523440991,0.04765049,105140.0,105130.0,2.00570402]
[1734523441700,8.849e-05,105140.0,105130.0,2.00570402]
[1734523444787,8.849e-05,105140.0,105130.0,2.03800402]
[1734523446285,0.04765049,105140.0,105130.0,2.03800402]
[1734523447184,8.849e-05,105140.0,105130.0,2.03800402]
[1734523447385,0.00038,105150.0,105140.0,0.047562]
[1734523447685,0.00038,105150.0,105140.0,0.49557967]
[1734523448187,0.00038,105150.0,105140.0,1.99557967]
[1734523448385,0.00050058,105150.0,105140.0,1.99557967]
[1734523448792,0.00050058,105150.0,105140.0,2.02637967]
[1734523450892,0.04805858,105150.0,105140.0,2.02637967]
[1734523454898,0.00050058,105150.0,105140.0,2.02637967]
[1734523459789,0.25277149,105170.0,105140.0,2.11355734]
[1734523459990,0.17431949,105170.0,105160.0,0.49553067]
[1734523460197,0.18986849,105170.0,105160.0,0.49557067]
[1734523460705,0.18986849,105170.0,105160.0,1.99557067]
[1734523460910,0.18994135,105170.0,105160.0,1.99557067]
[1734523461095,0.14239235,105170.0,105160.0,1.99557067]
[1734523461498,0.14239235,105170.0,105160.0,2.02657067]
[1734523461807,7.286e-05,105170.0,105160.0,2.02657067]
[1734523462901,7.286e-05,105170.0,105160.0,2.38737067]
[1734523467903,7.286e-05,105170.0,105160.0,2.39747609]
[1734523467904,0.04762186,105170.0,105160.0,2.39747609]
[1734523470514,0.04762186,105170.0,105160.0,2.31029842]
[1734523470704,0.40842186,105170.0,105160.0,1.51014542]
[1734523470905,0.43882186,105170.0,105160.0,1.51014542]
[1734523473617,0.75151378,105170.0,105160.0,1.51014542]
[1734523477320,0.43882186,105170.0,105160.0,1.51014542]
[1734523477701,0.43882186,105170.0,105160.0,1.55769842]
[1734523478112,0.60938109,105170.0,105160.0,1.55769842]
[1734523478318,0.60938109,105170.0,105160.0,1.51014542]
[1734523478506,0.60938109,105170.0,105160.0,1.55769842]
[1734523479817,0.24858109,105170.0,105160.0,1.55769842]
[1734523480218,0.60938109,105170.0,105160.0,1.55769842]
[1734523481313,0.581113,105170.0,105160.0,1.55769842]
[1734523481519,0.550713,105170.0,105160.0,1.55769842]
[1734523481820,0.189913,105170.0,105160.0,1.91849842]
[1734523484926,0.189913,105170.0,105160.0,2.00567609]
[1734523485220,0.142364,105170.0,105160.0,2.00567609]
[1734523485523,0.142364,105170.0,105160.0,2.03787609]
[1734523486618,7.286e-05,105170.0,105160.0,2.03787609]
[1734523486824,7.286e-05,105170.0,105160.0,2.08593609]
[1734523487613,7.286e-05,105170.0,105160.0,2.12647609]
[1734523489922,7.286e-05,105170.0,105160.0,2.35148824]
[1734523490417,7.286e-05,105170.0,105160.0,2.36096546]
[1734523490622,7.286e-05,105170.0,105160.0,2.35148824]
[1734523491015,7.286e-05,105170.0,105160.0,2.37096546]
[1734523491421,7.286e-05,105170.0,105160.0,2.64275343]
[1734523491620,7.286e-05,105170.0,105160.0,2.65223065]
[1734523492023,7.286e-05,105170.0,105160.0,2.64275343]
[1734523492211,7.286e-05,105170.0,105160.0,2.65223065]
[1734523492726,7.286e-05,105170.0,105160.0,2.36148824]
[1734523494120,7.286e-05,105170.0,105160.0,2.64275343]
[1734523495024,7.286e-05,105170.0,105160.0,2.36148824]
[1734523498030,0.04762186,105170.0,105160.0,2.24211057]
[1734523498231,0.04762186,105170.0,105160.0,2.32928824]
[1734523499230,7.286e-05,105170.0,105160.0,2.32928824]
[1734523499823,7.286e-05,105170.0,105160.0,2.10427609]
[1734523500725,0.04762186,105170.0,105160.0,2.32928824]
[1734523501333,7.286e-05,105170.0,105160.0,2.32928824]
[1734523501927,7.286e-05,105170.0,105160.0,2.13101426]
[1734523502936,7.286e-05,105170.0,105160.0,2.35602641]
[1734523503324,7.286e-05,105170.0,105160.0,2.38892641]
[1734523506735,7.286e-05,105170.0,105160.0,2.35602641]
[1734523507347,7.286e-05,105170.0,105160.0,2.41227945]
[1734523508039,7.286e-05,105170.0,105160.0,2.46923737]
[1734523508338,0.1138277,105190.0,105180.0,0.047544]
[1734523508640,0.1138277,105190.0,105180.0,0.88305984]
[1734523509030,0.1138277,105190.0,105180.0,2.38305984]
[1734523509230,7.197e-05,105190.0,105180.0,2.6082266]
[1734523509429,7.197e-05,105190.0,105180.0,2.6391266]
[1734523509625,7.197e-05,105190.0,105180.0,2.6874766]
[1734523510034,7.197e-05,105190.0,105180.0,2.66032213]
[1734523514042,7.197e-05,105190.0,105180.0,2.67040061]
[1734523514541,0.37403843,105200.0,105190.0,0.04754]
[1734523514841,0.37403843,105200.0,105190.0,0.49514137]
[1734523515138,0.37403843,105200.0,105190.0,1.99514137]
[1734523515631,0.37415242,105200.0,105190.0,1.99514137]
[1734523516034,0.26032472,105200.0,105190.0,2.22026813]
[1734523517239,0.26032472,105200.0,105190.0,1.99514137]
[1734523518541,0.26032472,105200.0,105190.0,2.22026813]
[1734523519347,0.26032472,105200.0,105190.0,1.99514137]
[1734523521547,0.26032472,105200.0,105190.0,2.35594137]
[1734523521854,0.25032472,105200.0,105190.0,2.35594137]
[1734523522147,0.25032472,105200.0,105190.0,2.26918]
[1734523522448,0.25032472,105200.0,105190.0,2.35594137]
[1734523529453,0.25032472,105200.0,105190.0,2.58106813]
[1734523530246,0.25032472,105200.0,105190.0,2.49430676]
[1734523530445,0.25032472,105200.0,105190.0,2.35594137]
[1734523531154,0.29785972,105200.0,105190.0,2.35594137]
[1734523531651,0.25032472,105200.0,105190.0,2.35594137]
[1734523531954,0.25032472,105200.0,105190.0,2.32610351]
[1734523532646,0.25032472,105200.0,105190.0,2.55123027]
[1734523533644,0.27884169,105200.0,105190.0,2.55123027]
[1734523533848,0.27884169,105200.0,105190.0,2.49430676]
[1734523534053,0.32637669,105200.0,105190.0,2.55123027]
[1734523535258,0.32637669,105200.0,105190.0,2.64047027]
[1734523535560,0.3833002,105200.0,105190.0,1.81440676]
[1734523535758,0.32637669,105200.0,105190.0,1.81440676]
[1734523536162,0.32637669,105200.0,105190.0,1.91887027]
[1734523537068,0.38310822,105200.0,105190.0,1.69374351]
[1734523537359,0.80083173,105200.0,105190.0,1.63682]
[1734523537561,0.74390822,105200.0,105190.0,1.63682]
[1734523537970,0.38310822,105200.0,105190.0,1.63682]
[1734523538161,0.74390822,105200.0,105190.0,1.63682]
[1734523538971,0.80083173,105200.0,105190.0,1.63682]
[1734523539273,0.74390822,105200.0,105190.0,1.58928]
[1734523539570,0.74390822,105200.0,105190.0,1.69374351]
[1734523540069,0.71577212,105200.0,105190.0,1.69374351]
[1734523540964,0.77269563,105200.0,105190.0,1.63682]
[1734523541361,0.71577212,105200.0,105190.0,1.63682]
[1734523541562,0.35497212,105200.0,105190.0,1.63682]
[1734523541757,0.35497212,105200.0,105190.0,1.58928]
[1734523542269,0.88633135,105200.0,105190.0,1.58928]
[1734523542669,0.94325486,105200.0,105190.0,1.58928]
[1734523542864,1.24325486,105200.0,105190.0,0.08928]
[1734523543069,1.25325486,105200.0,105190.0,0.08928]
[1734523543269,1.08269563,105200.0,105190.0,1.58928]
[1734523543967,1.13961914,105200.0,105190.0,1.58928]
[1734523544565,1.16775524,105200.0,105190.0,1.58928]
[1734523546075,0.047544,105180.0,105170.0,0.23516037]
[1734523546374,0.52219102,105180.0,105170.0,0.23516037]
[1734523546575,0.58489102,105180.0,105170.0,0.23516037]
[1734523546876,0.58498408,105180.0,105170.0,0.23516037]
[1734523547073,1.02735226,105180.0,105170.0,1.51003361]
[1734523548166,1.04163227,105180.0,105170.0,1.51003361]
[1734523548875,0.30962875,105180.0,105170.0,1.55758261]
[1734523549474,0.30962875,105180.0,105170.0,1.51003361]
[1734523549667,0.72735226,105180.0,105170.0,1.51003361]
[1734523550674,0.69873474,105180.0,105170.0,1.51032361]
[1734523551871,0.58506408,105180.0,105170.0,1.50029]
[1734523552070,0.58506408,105180.0,105170.0,0.00029]
[1734523552672,0.58506408,105180.0,105170.0,1.50029]
[1734523553070,1.02735226,105180.0,105170.0,1.50029]
[1734523554678,0.72735226,105180.0,105170.0,1.50029]
[1734523555278,1.02735226,105180.0,105170.0,1.50029]
[1734523555571,0.72735226,105180.0,105170.0,1.50029]
[1734523556380,1.02735226,105180.0,105170.0,1.50029]
[1734523558887,1.02735226,105180.0,105170.0,0.00029]
[1734523558888,1.24207577,105180.0,105170.0,0.00029]
[1734523559070,1.24198271,105180.0,105160.0,0.01]
[1734523559272,0.90656616,105170.0,105160.0,0.01]
[1734523559481,0.90664616,105170.0,105160.0,0.01]
[1734523559677,0.90664616,105170.0,105150.0,7.923e-05]
[1734523559678,0.047553,105160.0,105150.0,7.923e-05]
[1734523559878,0.61040847,105160.0,105150.0,7.923e-05]
[1734523560077,1.06820353,105160.0,105150.0,7.923e-05]
[1734523560287,1.06820353,105160.0,105150.0,2.3e-07]
[1734523560681,1.02065053,105160.0,105120.0,1.78872676]
[1734523560873,0.52221402,105130.0,105120.0,0.22512676]
[1734523561186,0.52229402,105130.0,105120.0,0.22512676]
[1734523561389,0.55489402,105130.0,105110.0,0.408373]
[1734523561584,0.10449451,105120.0,105110.0,0.408373]
[1734523561887,0.10464552,105120.0,105110.0,0.408373]
[1734523562089,0.04772201,105120.0,105110.0,0.408373]
[1734523562385,0.00015101,105120.0,105110.0,0.408373]
[1734523562686,0.00015101,105120.0,105110.0,0.41839745]
[1734523563387,0.0851206,105130.0,105120.0,0.047571]
[1734523563588,0.0851206,105130.0,105120.0,0.440171]
[1734523563883,0.4934846,105140.0,105130.0,0.047567]
[1734523564081,0.4459206,105140.0,105130.0,0.077767]
[1734523564284,0.4459206,105140.0,105130.0,0.438607]
[1734523564285,0.08522166,105140.0,105130.0,0.438607]
[1734523565286,0.00010106,105140.0,105130.0,0.438757]
[1734523565675,0.0851206,105150.0,105140.0,0.047562]
[1734523565882,0.0851206,105150.0,105140.0,0.52707093]
[1734523566082,0.0851206,105150.0,105140.0,0.52711093]
[1734523566681,0.08523204,105150.0,105140.0,0.440202]
[1734523566879,0.08523204,105150.0,105140.0,1.940202]
[1734523567496,0.00011144,105150.0,105140.0,1.940202]
[1734523569087,0.00011144,105150.0,105140.0,1.971402]
[1734523570991,0.00011144,105150.0,105140.0,2.05831093]
[1734523571380,0.08655118,105160.0,105150.0,0.047558]
[1734523571581,0.08655118,105160.0,105150.0,0.408358]
[1734523571781,0.08655118,105160.0,105150.0,0.408398]
[1734523572191,0.13410418,105160.0,105150.0,0.408398]
[1734523572384,0.04909832,105160.0,105150.0,1.908398]
[1734523573492,0.13422223,105160.0,105150.0,1.908398]
[1734523574685,0.08666923,105160.0,105150.0,1.908398]
[1734523574892,0.08666923,105160.0,105150.0,1.99530693]
[1734523575682,0.08666923,105160.0,105150.0,2.08221586]
[1734523575991,0.08666923,105160.0,105150.0,1.99530693]
[1734523576891,0.00154532,105160.0,105150.0,2.22005163]
[1734523577096,0.00011805,105160.0,105150.0,2.22005163]
[1734523580188,0.00011805,105160.0,105150.0,2.22036163]
[1734523580996,0.00011805,105160.0,105150.0,2.23030716]
[1734523582096,0.13457998,105160.0,105150.0,0.23504023]
[1734523582294,0.55837998,105160.0,105150.0,0.22922736]
[1734523582488,0.94239998,105160.0,105150.0,0.22922736]
[1734523583102,0.85549105,105160.0,105150.0,0.22922736]
[1734523583312,0.94239998,105160.0,105150.0,0.22922736]
[1734523583887,0.9689896,105160.0,105150.0,0.22922736]
[1734523584094,0.9689896,105160.0,105150.0,0.00448266]
[1734523584493,0.9689896,105160.0,105150.0,0.05204066]
[1734523584690,0.6081896,105160.0,105150.0,0.41284066]
[1734523584992,0.1136166,105160.0,105150.0,0.41284066]
[1734523585189,0.1136166,105160.0,105150.0,0.56304959]
[1734523585898,0.0853021,105160.0,105150.0,0.56304959]
[1734523586799,0.00011805,105160.0,105150.0,0.56304959]
[1734523588196,0.00011805,105160.0,105150.0,2.06304959]
[1734523588791,0.00011805,105160.0,105150.0,2.28779429]
[1734523589701,0.3078296,105180.0,105150.0,2.28779429]
[1734523590000,0.2297826,105180.0,105170.0,0.49529793]
[1734523590197,0.2297826,105180.0,105170.0,0.49943059]
[1734523590695,0.22988724,105180.0,105170.0,0.49943059]
[1734523590895,0.22988724,105180.0,105170.0,0.41252166]
[1734523591395,0.11638869,105180.0,105170.0,0.41252166]
[1734523592902,0.16393269,105180.0,105170.0,0.41252166]
[1734523593098,0.11638869,105180.0,105170.0,0.41252166]
[1734523593302,0.11638869,105180.0,105170.0,0.77332166]
[1734523593805,0.11638869,105180.0,105170.0,2.27332166]
[1734523598511,0.11638869,105180.0,105170.0,2.28291318]
[1734523598812,0.11638869,105180.0,105170.0,0.78291318]
[1734523599205,0.11638869,105180.0,105170.0,2.28291318]
[1734523599401,0.11638869,105180.0,105170.0,2.28346318]
[1734523600405,0.08528869,105180.0,105170.0,2.28346318]
[1734523600606,0.08528869,105180.0,105170.0,2.37037211]
[1734523601000,0.08528869,105180.0,105170.0,2.28346318]
[1734523601207,0.08528869,105180.0,105170.0,2.37037211]
[1734523603715,0.08528869,105180.0,105170.0,2.40297211]
[1734523604806,0.13283269,105180.0,105170.0,2.31606318]
[1734523605106,0.11538869,105180.0,105170.0,2.31606318]
[1734523606406,0.11538869,105180.0,105170.0,2.40297211]
[1734523608911,0.16293269,105180.0,105170.0,2.40297211]
[1734523610807,0.11538869,105180.0,105170.0,2.40297211]
[1734523613522,0.16293269,105180.0,105170.0,2.31606318]
[1734523614109,0.16293269,105180.0,105170.0,2.28346318]
[1734523614716,0.16293269,105180.0,105170.0,2.50820788]
[1734523616117,0.19124719,105180.0,105170.0,2.28346318]
[1734523617014,0.19124719,105180.0,105170.0,2.50820788]
[1734523617015,0.21962183,105180.0,105170.0,2.50820788]
[1734523620519,0.17207783,105180.0,105170.0,2.50820788]
[1734523620826,0.17207783,105180.0,105170.0,2.59511681]
[1734523622216,0.17207783,105180.0,105170.0,2.50820788]
[1734523623317,0.17207783,105180.0,105170.0,2.59511681]
[1734523623318,0.14197783,105180.0,105170.0,2.59511681]
[1734523623517,0.14197783,105180.0,105170.0,2.65811681]
[1734523623721,0.14197783,105180.0,105170.0,2.57120788]
[1734523624320,0.18952183,105180.0,105170.0,2.54060788]
[1734523624520,0.22082183,105180.0,105170.0,2.54060788]
[1734523624724,0.19295731,105180.0,105170.0,2.82153876]
[1734523624923,0.14541331,105180.0,105170.0,2.82153876]
[1734523625928,0.2872865,105180.0,105170.0,2.54060788]
[1734523627530,0.14541331,105180.0,105170.0,2.54060788]
[1734523629842,0.19295731,105180.0,105170.0,2.50820788]
[1734523630041,0.19295731,105180.0,105170.0,2.56516724]
[1734523630638,0.22082183,105180.0,105170.0,2.56516724]
[1734523633037,0.22082183,105180.0,105170.0,2.50820788]
[1734523633237,0.22082183,105180.0,105170.0,2.56516724]
[1734523634850,0.22082183,105180.0,105170.0,2.50820788]
[1734523638452,0.27778119,105180.0,105170.0,2.50820788]
[1734523638855,0.30858119,105180.0,105170.0,2.50820788]
[1734523639349,0.30858119,105180.0,105170.0,2.14740788]
[1734523639747,0.72634055,105180.0,105170.0,1.73905888]
[1734523639948,0.72634055,105180.0,105170.0,0.22946736]
[1734523640145,0.20407783,105180.0,105170.0,0.69477572]
[1734523640345,0.22082183,105180.0,105170.0,2.21854572]
[1734523641254,0.07894864,105180.0,105170.0,1.99380102]
[1734523642356,0.07894864,105180.0,105170.0,2.16158636]
[1734523643457,0.22148689,105180.0,105170.0,2.16158636]
[1734523647259,0.22148689,105180.0,105170.0,2.17400636]
[1734523648258,0.22148689,105180.0,105170.0,2.23096572]
[1734523649158,0.22148689,105180.0,105170.0,2.23092572]
[1734523649956,0.22148689,105180.0,105170.0,2.17396636]
[1734523656171,0.27844625,105180.0,105170.0,2.17396636]
[1734523656368,0.30984625,105180.0,105170.0,1.76561736]
[1734523656560,0.72760561,105180.0,105170.0,0.26561736]
[1734523657160,0.75611326,105180.0,105170.0,1.54087266]
[1734523657562,0.6991539,105180.0,105170.0,1.54087266]
[1734523657768,0.75611326,105180.0,105170.0,1.54087266]
[1734523658281,0.6991539,105180.0,105170.0,1.54087266]
[1734523658588,0.528108,105180.0,105170.0,1.54087266]
[1734523658784,0.11034864,105180.0,105170.0,1.64538102]
[1734523659077,0.07894864,105180.0,105170.0,2.00618102]
[1734523659574,0.04764864,105180.0,105170.0,2.00618102]
[1734523659968,0.04764864,105180.0,105170.0,2.03748102]
[1734523660578,0.19008784,105180.0,105170.0,2.03748102]
[1734523662473,0.19008784,105180.0,105170.0,2.26222572]
[1734523664583,0.30404403,105180.0,105170.0,2.26222572]
[1734523666876,0.30404403,105180.0,105170.0,2.20526636]
[1734523667985,0.30404403,105180.0,105170.0,2.26222572]
[1734523668584,0.30404403,105180.0,105170.0,2.20526636]
[1734523670588,0.30404403,105180.0,105170.0,2.17396636]
[1734523670791,0.22278784,105180.0,105170.0,2.17396636]
[1734523671992,0.22278784,105180.0,105170.0,1.94922166]
[1734523674891,0.22278784,105180.0,105170.0,2.00618102]
[1734523675284,0.22278784,105180.0,105170.0,1.94922166]
[1734523675784,0.22278784,105180.0,105170.0,2.00618102]
[1734523675986,0.17524384,105180.0,105170.0,2.00618102]
[1734523676285,0.17524384,105180.0,105170.0,2.23092572]
[1734523676286,0.14254384,105180.0,105170.0,2.23092572]
[1734523676585,0.14254384,105180.0,105170.0,2.29532572]
[1734523676792,0.14254384,105180.0,105170.0,0.79532572]
[1734523677490,0.14254384,105180.0,105170.0,2.29532572]
[1734523677689,0.11405297,105180.0,105170.0,2.29532572]
[1734523682293,0.11405297,105180.0,105170.0,0.79532572]
[1734523682899,0.11405297,105180.0,105170.0,2.29532572]
[1734523683394,0.11405297,105180.0,105170.0,2.07058102]
[1734523683395,0.00010464,105180.0,105170.0,2.07058102]
[1734523684797,0.19945328,105180.0,105170.0,2.29609632]
[1734523688398,0.11401815,105180.0,105170.0,2.29609632]
[1734523689303,0.11401815,105180.0,105170.0,2.35247515]
[1734523690097,0.11401815,105180.0,105170.0,2.31997515]
[1734523691906,0.16156215,105180.0,105170.0,2.28807515]
[1734523692110,0.22366215,105180.0,105170.0,2.28807515]
[1734523693205,0.30914141,105180.0,105170.0,2.28807515]
[1734523694201,0.25214052,105180.0,105170.0,2.23185563]
[1734523695107,0.10974864,105180.0,105170.0,2.23185563]
[1734523695898,0.10974864,105180.0,105170.0,2.17489627]